bitfinex/quotes_SOLUSD_20251127
["timestamp","ask_amount","ask_price","bid_price","bid_amount"]
[1764221090533,26.13406405,143.5,143.45,59.53510315]
[1764221090696,3.53643366,143.49,143.45,58.85510315]
[1764221091015,10.50600745,143.49,143.45,59.53510315]
[1764221091216,9.82600745,143.49,143.45,59.53510315]
[1764221091418,0.68,143.48,143.45,58.85510315]
[1764221091810,0.68,143.48,143.45,59.53510315]
[1764221092396,7.64969778,143.48,143.45,58.85510315]
[1764221092596,7.64969778,143.48,143.45,61.93510315]
[1764221092915,7.64969778,143.48,143.45,62.61510315]
[1764221093112,0.68,143.48,143.45,62.61510315]
[1764221093497,7.64968341,143.48,143.45,61.93510315]
[1764221093816,7.64968341,143.48,143.45,62.61510315]
[1764221094211,0.68,143.48,143.45,62.61510315]
[1764221094412,6.96924666,143.49,143.46,0.68]
[1764221094709,6.96924666,143.49,143.45,68.90617094]
[1764221094710,6.96924666,143.49,143.45,61.93510315]
[1764221094899,7.64924666,143.49,143.45,62.61510315]
[1764221095418,7.64924666,143.49,143.45,61.93510315]
[1764221095715,7.64924666,143.49,143.46,0.68]
[1764221096420,0.68,143.5,143.46,0.68]
[1764221097795,7.64881299,143.5,143.46,0.68]
[1764221098007,6.96881299,143.5,143.46,0.68]
[1764221098299,7.64881299,143.5,143.46,0.68]
[1764221098930,6.96881299,143.5,143.45,3.08]
[1764221099103,12.56994492,143.49,143.41,0.68]
[1764221099304,2.85643366,143.46,143.41,75.68]
[1764221099509,2.85643366,143.47,143.41,75.68]
[1764221099829,2.85643366,143.47,143.42,0.96432314]
[1764221100008,10.50672995,143.47,143.43,3.08]
[1764221100319,0.68,143.46,143.43,3.76]
[1764221101296,10.50701809,143.46,143.43,3.08]
[1764221101499,2.85643366,143.45,143.43,3.08]
[1764221101700,2.85643366,143.44,143.42,3.08]
[1764221101914,0.68,143.45,143.42,3.08]
[1764221103023,0.68,143.45,143.42,61.93510315]
[1764221103024,3.53643366,143.45,143.42,61.93510315]
[1764221103326,6.97058443,143.46,143.42,62.61510315]
[1764221103327,10.50701809,143.46,143.42,62.61510315]
[1764221104522,0.68,143.45,143.42,62.61510315]
[1764221105220,0.1,143.54,143.5,91.308864]
[1764221105421,0.1,143.54,143.51,3.08]
[1764221105719,0.1,143.54,143.51,3.76]
[1764221105920,0.1,143.54,143.52,0.68]
[1764221106613,0.1,143.54,143.52,78.8207568]
[1764221107016,0.1,143.54,143.52,0.96432314]
[1764221107235,0.1,143.54,143.53,6.96718456]
[1764221107524,0.78,143.54,143.53,3.08]
[1764221107716,0.1,143.54,143.53,3.08]
[1764221108033,0.78,143.54,143.53,3.08]
[1764221108826,0.1,143.54,143.53,3.08]
[1764221109229,0.79,143.54,143.53,3.08]
[1764221109423,0.1,143.54,143.53,3.08]
[1764221110620,0.1,143.54,143.53,64.58]
[1764221113056,0.1,143.54,143.53,67.43643366]
[1764221113533,0.1,143.54,143.53,64.58]
[1764221116228,0.78,143.54,143.53,64.58]
[1764221117710,0.1,143.54,143.53,64.58]
[1764221118210,0.1,143.54,143.53,67.43643366]
[1764221118727,0.78,143.54,143.53,67.43643366]
[1764221118923,0.1,143.54,143.53,64.58]
[1764221119910,0.1,143.54,143.53,67.43643366]
[1764221120106,0.1,143.54,143.53,64.35643366]
[1764221120336,0.1,143.54,143.53,5.93643366]
[1764221120514,0.1,143.54,143.53,4.90785989]
[1764221122939,0.1,143.54,143.53,3.08]
[1764221122940,0.78,143.54,143.53,3.08]
[1764221123249,0.1,143.54,143.53,3.08]
[1764221124549,0.1,143.54,143.53,12.55504445]
[1764221125542,0.1,143.54,143.53,5.58785989]
[1764221126940,0.1,143.54,143.53,12.55504445]
[1764221127850,0.1,143.54,143.53,5.58785989]
[1764221129738,0.1,143.54,143.53,67.08785989]
[1764221131050,0.1,143.54,143.53,74.05504445]
[1764221133339,0.1,143.57,143.55,0.28432314]
[1764221133534,0.1,143.57,143.56,5.58785989]
[1764221135249,0.1,143.57,143.56,12.83791164]
[1764221135564,0.1,143.57,143.56,5.58785989]
[1764221135744,0.1,143.57,143.56,1.82785989]
[1764221135949,0.1,143.57,143.56,5.58785989]
[1764221136248,0.1,143.57,143.56,12.5535885]
[1764221136438,0.1,143.57,143.56,5.58785989]
[1764221136953,0.1,143.57,143.56,4.90785989]
[1764221137455,0.1,143.57,143.56,5.58785989]
[1764221138551,0.1,143.57,143.56,67.08785989]
[1764221138753,0.1,143.57,143.56,64.58]
[1764221138960,0.1,143.57,143.56,66.40785989]
[1764221139140,0.1,143.57,143.56,67.08785989]
[1764221139962,0.1,143.57,143.56,67.12785989]
[1764221140570,17.40619071,143.63,143.56,66.40785989]
[1764221140740,17.40619071,143.63,143.58,1.82785989]
[1764221141650,24.36852448,143.63,143.6,1.82785989]
[1764221141855,24.36852448,143.63,143.6,63.32785989]
[1764221142554,24.36852448,143.63,143.6,61.5]
[1764221143463,9.52994492,143.62,143.6,61.5]
[1764221143668,11.35780481,143.62,143.6,61.5]
[1764221143840,2.54785989,143.61,143.6,61.5]
[1764221144044,18.85672389,143.61,143.6,61.5]
[1764221144261,27.66666881,143.61,143.55,1.82785989]
[1764221144463,8.80994492,143.59,143.54,4.90785989]
[1764221144863,9.52994492,143.59,143.54,4.90785989]
[1764221145554,9.52994492,143.59,143.55,1.82785989]
[1764221145555,6.96475832,143.58,143.55,1.82785989]
[1764221146270,6.96475832,143.58,143.54,1.82785989]
[1764221146841,6.96475832,143.58,143.53,3.08]
[1764221147049,6.96475832,143.58,143.54,1.82785989]
[1764221147864,6.96475832,143.58,143.53,3.08]
[1764221148061,6.96475832,143.58,143.55,1.82785989]
[1764221149370,17.41105496,143.59,143.55,1.82785989]
[1764221149371,24.37532823,143.59,143.55,1.82785989]
[1764221149580,6.96427327,143.59,143.56,1.82785989]
[1764221150479,6.96427327,143.59,143.55,1.82785989]
[1764221152053,24.37495646,143.59,143.53,24.90357454]
[1764221152259,26.20281635,143.59,143.54,1.82785989]
[1764221153374,8.80994492,143.58,143.54,1.82785989]
[1764221153677,8.80994492,143.58,143.53,24.18357454]
[1764221153860,10.63780481,143.58,143.53,1.82785989]
[1764221154178,6.96524343,143.57,143.54,1.82785989]
[1764221154760,6.96524343,143.57,143.55,1.82785989]
[1764221155575,6.96524343,143.57,143.53,3.08]
[1764221155879,17.41268058,143.58,143.54,1.82785989]
[1764221155880,24.3774389,143.58,143.54,1.82785989]
[1764221158363,24.3774389,143.58,143.55,1.82785989]
[1764221159461,25.0974389,143.58,143.55,1.82785989]
[1764221159861,24.3774389,143.58,143.55,1.82785989]
[1764221160679,24.3774389,143.58,143.54,1.82785989]
[1764221161781,25.0974389,143.58,143.54,1.82785989]
[1764221163178,24.3774389,143.58,143.54,1.82785989]
[1764221163484,6.96475832,143.58,143.55,1.82785989]
[1764221165477,6.96475832,143.58,143.54,21.82357454]
[1764221165478,6.96475832,143.58,143.54,23.65143443]
[1764221165887,0.69,143.57,143.54,22.93143443]
[1764221166085,1.82785989,143.56,143.52,3.08]
[1764221166275,1.82785989,143.56,143.52,24.18357454]
[1764221166464,6.96621386,143.55,143.52,24.18357454]
[1764221166781,6.96585046,143.56,143.54,1.82785989]
[1764221168580,7.65524343,143.57,143.54,1.82785989]
[1764221168785,25.06835201,143.57,143.54,1.82785989]
[1764221169390,25.06835201,143.57,143.53,2.48785989]
[1764221169769,0.69,143.56,143.53,2.48785989]
[1764221170089,6.96621386,143.55,143.53,2.48785989]
[1764221170283,6.96621386,143.55,143.53,1.82785989]
[1764221171266,6.96621386,143.55,143.53,2.52785989]
[1764221171467,6.96621386,143.55,143.54,1.82785989]
[1764221171667,6.96587616,143.56,143.54,1.82785989]
[1764221171868,6.96587616,143.56,143.54,2.52785989]
[1764221172084,24.37835201,143.57,143.54,2.52785989]
[1764221173995,24.37835201,143.57,143.54,0.7]
[1764221174386,25.03835201,143.57,143.54,0.7]
[1764221174686,25.03835201,143.57,143.53,1.82785989]
[1764221175096,25.03835201,143.57,143.53,2.50785989]
[1764221176383,25.03835201,143.57,143.54,0.68]
[1764221177191,25.03835201,143.57,143.54,21.78357454]
[1764221178500,6.96524343,143.57,143.55,0.68]
[1764221178700,6.96524343,143.57,143.55,2.50785989]
[1764221179387,6.96524343,143.57,143.55,0.68]
[1764221179901,6.96524343,143.57,143.54,21.10357454]
[1764221180081,0.66,143.56,143.54,21.10357454]
[1764221180702,6.96621386,143.55,143.54,21.10357454]
[1764221183077,6.96621386,143.55,143.52,24.64010574]
[1764221183295,6.96621386,143.55,143.52,23.96010574]
[1764221183504,0.66,143.54,143.52,21.10357454]
[1764221183690,27.89827971,143.55,143.51,0.68]
[1764221184499,27.89827971,143.55,143.47,0.68]
[1764221184500,2.8565312,143.52,143.47,0.68]
[1764221184708,2.8565312,143.52,143.48,0.68]
[1764221185011,6.96815552,143.51,143.48,0.68]
[1764221185785,6.96815552,143.51,143.48,3.5365312]
[1764221186187,7.62815552,143.51,143.48,0.68]
[1764221186400,6.96815552,143.51,143.48,0.68]
[1764221187024,6.96815552,143.51,143.48,3.5365312]
[1764221187183,6.96769186,143.52,143.5,2.8565312]
[1764221187383,6.96769186,143.52,143.51,0.68]
[1764221188416,13.56422306,143.52,143.48,21.10357454]
[1764221188587,3.5165312,143.51,143.48,21.10357454]
[1764221188998,6.96864111,143.5,143.48,21.10357454]
[1764221189309,6.96864111,143.5,143.48,21.78357454]
[1764221190014,6.96864111,143.5,143.48,21.10357454]
[1764221190383,6.96864111,143.5,143.46,5.9365312]
[1764221190609,10.48517231,143.5,143.46,24.86357454]
[1764221190795,27.24677509,143.5,143.46,24.86357454]
[1764221191004,6.96961248,143.48,143.45,3.5365312]
[1764221191315,6.96961248,143.48,143.46,0.68]
[1764221193196,6.96912676,143.49,143.46,0.68]
[1764221193411,28.13194368,143.49,143.46,0.68]
[1764221193619,27.47194368,143.49,143.45,2.8565312]
[1764221193799,0.66,143.48,143.44,3.08]
[1764221194128,0.66,143.48,143.44,6.6165312]
[1764221194494,0.66,143.48,143.45,0.68]
[1764221195660,6.97009827,143.47,143.45,0.68]
[1764221196820,6.97009827,143.47,143.41,16.308864]
[1764221196989,6.97009827,143.47,143.43,2.8565312]
[1764221196990,25.05534396,143.47,143.43,2.8565312]
[1764221197312,24.39534396,143.47,143.43,2.8565312]
[1764221197514,24.39534396,143.47,143.44,0.68]
[1764221197696,25.05534396,143.47,143.44,0.68]
[1764221198915,27.91187516,143.47,143.43,0.68]
[1764221199121,30.99187516,143.47,143.43,0.68]
[1764221199289,27.91187516,143.47,143.43,0.68]
[1764221199501,27.91187516,143.47,143.43,3.5365312]
[1764221199902,27.91187516,143.47,143.44,0.66]
[1764221201223,9.82662947,143.47,143.44,0.66]
[1764221201433,6.97009827,143.47,143.44,0.66]
[1764221201999,27.97187516,143.47,143.44,0.66]
[1764221202423,25.11534396,143.47,143.44,0.66]
[1764221202920,24.39534396,143.47,143.44,0.66]
[1764221203414,25.11534396,143.47,143.44,0.66]
[1764221204114,27.97187516,143.47,143.44,0.66]
[1764221204414,27.25187516,143.47,143.43,0.66]
[1764221204728,27.97187516,143.47,143.43,0.66]
[1764221204934,48.91647668,143.47,143.43,0.66]
[1764221205305,27.97187516,143.47,143.43,0.66]
[1764221207130,48.91647668,143.47,143.43,0.66]
[1764221207914,0.72,143.46,143.43,0.66]
[1764221208428,48.91647668,143.47,143.43,0.66]
[1764221208728,6.97009827,143.47,143.46,2.8565312]
[1764221208907,47.54905405,143.49,143.44,3.5165312]
[1764221209111,7.6897138,143.48,143.44,3.5165312]
[1764221209424,10.546245,143.48,143.45,0.66]
[1764221209927,3.5765312,143.47,143.43,3.74]
[1764221210325,10.55001451,143.46,143.41,3.5165312]
[1764221210526,2.8565312,143.45,143.41,3.5165312]
[1764221210733,3.5765312,143.45,143.42,0.66]
[1764221211242,6.97155605,143.44,143.42,0.66]
[1764221212825,24.39874519,143.45,143.42,0.66]
[1764221213026,25.11874519,143.45,143.42,0.66]
[1764221213348,27.97527639,143.45,143.42,0.66]
[1764221213944,2.8565312,143.43,143.39,21.96357454]
[1764221214236,2.8565312,143.43,143.39,0.86]
[1764221214455,3.5765312,143.43,143.39,0.86]
[1764221214815,6.97252823,143.42,143.39,0.86]
[1764221215213,27.98038002,143.42,143.39,0.2]
[1764221216019,27.98038002,143.42,143.39,0.86]
[1764221216214,20.95045218,143.43,143.4,3.5165312]
[1764221216423,20.28534681,143.45,143.4,3.5165312]
[1764221216424,6.97196888,143.44,143.4,3.5165312]
[1764221216617,6.97196888,143.44,143.41,0.66]
[1764221217520,6.97196888,143.44,143.42,2.8565312]
[1764221217737,6.97115507,143.45,143.43,2.8565312]
[1764221218111,6.97115507,143.45,143.44,0.66]
[1764221218942,24.39543874,143.47,143.44,0.66]
[1764221219235,25.11543874,143.47,143.44,0.66]
[1764221219420,27.97196994,143.47,143.44,0.66]
[1764221224635,27.25196994,143.47,143.44,0.66]
[1764221225542,27.97196994,143.47,143.44,0.66]
[1764221225846,25.11880892,143.44,143.39,0.2]
[1764221226046,2.8565312,143.42,143.39,0.2]
[1764221226248,6.97301443,143.41,143.39,0.2]
[1764221227036,6.97301443,143.41,143.39,0.86]
[1764221227354,6.97301443,143.41,143.4,0.66]
[1764221228342,6.97301443,143.41,143.39,0.2]
[1764221228533,6.97301443,143.41,143.39,0.86]
[1764221229266,9.82954563,143.41,143.39,0.2]
[1764221231441,17.4321278,143.42,143.39,0.2]
[1764221231648,20.288659,143.42,143.39,0.89]
[1764221231954,20.958659,143.42,143.39,0.89]
[1764221232262,17.4321278,143.42,143.39,0.89]
[1764221232556,6.97204211,143.43,143.4,0.69]
[1764221232763,9.82857331,143.43,143.4,0.69]
[1764221233343,27.25867858,143.43,143.4,0.69]
[1764221234955,27.25867858,143.43,143.39,0.2]
[1764221234956,3.5265312,143.42,143.39,0.2]
[1764221235142,2.8565312,143.42,143.39,0.89]
[1764221235660,2.8565312,143.42,143.4,0.69]
[1764221236453,6.97301443,143.41,143.4,0.69]
[1764221238069,6.97252823,143.42,143.4,0.69]
[1764221238368,9.82905943,143.42,143.39,21.30357454]
[1764221238851,9.82905943,143.42,143.4,0.69]
[1764221240164,6.97064179,143.46,143.41,2.8565312]
[1764221240373,6.97064179,143.46,143.42,2.8565312]
[1764221240870,6.97064179,143.46,143.43,0.69]
[1764221241675,9.82662947,143.47,143.43,0.69]
[1764221242655,8.80075475,143.47,143.43,0.69]
[1764221243462,26.22600044,143.47,143.43,0.69]
[1764221244870,6.97009827,143.47,143.43,0.69]
[1764221245073,8.80075475,143.47,143.43,0.69]
[1764221245282,6.97009827,143.47,143.43,0.69]
[1764221245449,8.80075475,143.47,143.43,0.69]
[1764221247074,1.83065648,143.46,143.43,0.69]
[1764221247270,7.64009827,143.47,143.43,0.69]
[1764221247478,1.83065648,143.46,143.43,0.69]
[1764221247674,1.83065648,143.45,143.43,0.69]
[1764221247973,1.83065648,143.44,143.41,21.79357454]
[1764221248470,1.83065648,143.44,143.42,0.69]
[1764221248774,3.75,143.46,143.42,0.69]
[1764221248775,1.83065648,143.45,143.42,0.69]
[1764221249280,8.80216417,143.45,143.42,0.69]
[1764221251581,1.83065648,143.44,143.42,0.69]
[1764221251880,1.83065648,143.44,143.41,21.79357454]
[1764221252669,1.83065648,143.44,143.42,0.69]
[1764221253687,6.97204211,143.43,143.42,0.69]
[1764221254183,6.97204211,143.43,143.41,21.10357454]
[1764221254363,1.83065648,143.42,143.4,0.69]
[1764221255460,6.97301443,143.41,143.4,0.69]
[1764221256271,6.97267972,143.42,143.4,0.69]
[1764221258194,26.23465679,143.42,143.39,0.2]
[1764221258562,26.90465679,143.42,143.39,0.2]
[1764221259180,2.50065648,143.41,143.39,0.2]
[1764221259382,1.83065648,143.4,143.39,0.2]
[1764221259582,8.80415717,143.4,143.39,0.2]
[1764221260787,21.38410209,143.4,143.39,0.2]
[1764221261283,11.88415717,143.4,143.39,0.2]
[1764221261786,12.57415717,143.4,143.39,0.2]
[1764221265365,10.05350069,143.4,143.39,0.2]
[1764221265564,11.88415717,143.4,143.39,0.2]
[1764221268106,10.05350069,143.4,143.39,0.2]
[1764221268401,11.88415717,143.4,143.39,0.2]
[1764221268888,21.38410209,143.4,143.39,0.2]
[1764221269676,21.38410209,143.4,143.38,0.2]
[1764221269878,11.3306014,143.39,143.38,0.2]
[1764221270192,27.6394654,143.39,143.38,0.2]
[1764221270492,34.61345242,143.39,143.38,0.2]
[1764221270991,1.83065648,143.39,143.38,0.2]
[1764221272602,8.8046435,143.39,143.38,0.2]
[1764221272897,33.96345242,143.39,143.38,0.2]
[1764221273593,8.80994492,143.38,143.34,0.66]
[1764221273799,1.83065648,143.35,143.34,0.66]
[1764221274366,1.83065648,143.36,143.34,0.66]
[1764221274574,6.97593303,143.35,143.34,0.66]
[1764221275002,6.97560006,143.36,143.34,0.66]
[1764221277318,17.43789852,143.37,143.34,0.66]
[1764221277478,8.8051299,143.38,143.34,0.66]
[1764221279797,26.24131346,143.38,143.34,0.66]
[1764221280670,24.41065698,143.38,143.34,0.66]
[1764221280876,26.24131346,143.38,143.34,0.66]
[1764221281187,26.24131346,143.38,143.34,21.76357454]
[1764221281578,6.97544642,143.36,143.35,0.66]
[1764221282802,8.8061029,143.36,143.34,21.10357454]
[1764221283113,1.83065648,143.35,143.34,21.76357454]
[1764221283292,1.83065648,143.35,143.34,0.66]
[1764221286302,8.80658951,143.35,143.34,0.66]
[1764221286789,26.24642208,143.35,143.33,0.66]
[1764221286992,1.83065648,143.34,143.33,0.66]
[1764221288703,8.80707618,143.34,143.33,0.66]
[1764221293010,8.80707618,143.34,143.32,0.72]
[1764221293592,1.83065648,143.33,143.31,24.38357454]
[1764221293797,1.83065648,143.33,143.31,25.10357454]
[1764221294308,1.83065648,143.33,143.31,22.02357454]
[1764221295020,6.97739324,143.32,143.31,22.02357454]
[1764221295515,6.97739324,143.32,143.31,21.30357454]
[1764221296129,6.97739324,143.32,143.31,22.02357454]
[1764221296729,8.80804972,143.32,143.31,0.2]
[1764221297018,6.9770768,143.33,143.31,0.92]
[1764221297410,6.97655249,143.34,143.32,0.72]
[1764221303100,6.97593303,143.35,143.32,0.72]
[1764221303309,9.84123431,143.35,143.32,0.72]
[1764221303520,12.92123431,143.35,143.32,0.72]
[1764221303720,30.36106688,143.35,143.32,0.72]
[1764221305608,9.84123431,143.35,143.32,0.72]
[1764221305803,6.97593303,143.35,143.32,0.72]
[1764221309625,9.84123431,143.35,143.32,0.72]
[1764221310730,9.84123431,143.35,143.32,21.82357454]
[1764221311024,9.84123431,143.35,143.33,0.72]
[1764221311233,6.97593303,143.35,143.33,0.72]
[1764221311528,6.97593303,143.35,143.33,3.8]
[1764221311736,27.02817612,143.37,143.33,3.8]
[1764221311737,10.05538174,143.37,143.33,3.8]
[1764221311940,10.05538174,143.37,143.34,0.72]
[1764221312147,6.97538174,143.37,143.34,0.72]
[1764221313440,2.86530128,143.35,143.34,0.72]
[1764221314124,2.86530128,143.36,143.34,0.72]
[1764221314815,9.84099557,143.36,143.34,0.72]
[1764221316841,2.86530128,143.35,143.33,21.82357454]
[1764221317013,2.86530128,143.35,143.33,21.10357454]
[1764221317214,2.86530128,143.35,143.34,0.72]
[1764221317433,24.41431036,143.36,143.34,0.72]
[1764221317623,27.27961164,143.36,143.34,0.72]
[1764221322323,20.95923428,143.37,143.34,21.82357454]
[1764221322526,20.95923428,143.37,143.35,3.76]
[1764221322723,20.95923428,143.37,143.36,0.68]
[1764221322924,6.97480896,143.38,143.36,21.78357454]
[1764221323128,9.84011024,143.38,143.36,21.78357454]
[1764221323325,9.84011024,143.38,143.37,0.68]
[1764221323842,10.61814722,143.4,143.37,0.68]
[1764221324012,13.4834485,143.4,143.37,0.68]
[1764221324336,2.86530128,143.39,143.37,0.68]
[1764221326042,6.97447342,143.38,143.37,0.68]
[1764221329245,25.11880892,143.41,143.37,0.68]
[1764221329246,9.83831571,143.41,143.37,21.78357454]
[1764221329445,9.83831571,143.41,143.38,3.08]
[1764221329649,9.83831571,143.41,143.38,3.76]
[1764221329827,2.86530128,143.39,143.37,21.10357454]
[1764221330151,2.86530128,143.38,143.35,3.76]
[1764221330352,2.86530128,143.37,143.35,24.86357454]
[1764221330551,2.86530128,143.37,143.36,0.68]
[1764221330726,2.86530128,143.38,143.36,0.68]
[1764221331154,9.84020748,143.38,143.36,0.68]
[1764221332230,9.84026117,143.37,143.36,0.68]
[1764221333131,9.84026117,143.37,143.36,6.18426136]
[1764221333643,6.97495989,143.37,143.36,6.18426136]
[1764221337757,23.82014359,143.41,143.36,6.18426136]
[1764221338062,2.86530128,143.41,143.37,3.76]
[1764221338549,2.86530128,143.41,143.38,0.68]
[1764221339455,6.97350069,143.4,143.38,0.68]
[1764221339656,6.97350069,143.4,143.38,21.78357454]
[1764221340046,6.97350069,143.4,143.39,0.68]
[1764221340361,6.97321633,143.41,143.39,0.68]
[1764221341849,17.43179349,143.42,143.39,0.68]
[1764221342039,20.29709477,143.42,143.39,0.68]
[1764221344061,15.53344613,143.44,143.39,21.78357454]
[1764221344251,2.86530128,143.4,143.39,21.10357454]
[1764221344440,2.86530128,143.4,143.38,21.78357454]
[1764221346162,9.83900517,143.4,143.38,21.78357454]
[1764221346360,2.86530128,143.39,143.38,21.10357454]
[1764221347039,9.83900517,143.4,143.38,21.78357454]
[1764221348843,9.83900517,143.4,143.38,0.68]
[1764221350747,2.86530128,143.39,143.37,21.10357454]
[1764221350959,2.86530128,143.39,143.37,21.78357454]
[1764221351164,2.86530128,143.39,143.38,0.68]
[1764221351366,2.86530128,143.39,143.37,21.78357454]
[1764221352366,2.86530128,143.39,143.37,0.68]
[1764221353065,6.97447342,143.38,143.37,0.68]
[1764221356571,12.9597747,143.38,143.36,5.50426136]
[1764221356774,12.9597747,143.38,143.32,6.15721224]
[1764221356775,2.86530128,143.34,143.32,6.15721224]
[1764221356975,2.86530128,143.33,143.32,6.15721224]
[1764221357159,2.86530128,143.33,143.32,6.83721224]
[1764221360356,9.84220771,143.33,143.32,6.83721224]
[1764221361881,9.84220771,143.33,143.32,6.15721224]
[1764221362468,67.31313206,143.32,143.29,53.20677583]
[1764221362774,26.95473386,143.3,143.29,13.62012652]
[1764221362976,26.99473386,143.3,143.29,13.62012652]
[1764221363174,40.61486038,143.3,143.29,13.62012652]
[1764221364176,47.59322744,143.3,143.29,13.62012652]
[1764221368312,8.80994492,143.29,143.28,6.81016312]
[1764221368473,10.64586986,143.29,143.28,6.81016312]
[1764221368875,17.45603298,143.29,143.28,6.81016312]
[1764221369076,19.29195792,143.29,143.28,6.81016312]
[1764221369968,26.27081199,143.29,143.28,6.81016312]
[1764221370383,26.31081199,143.29,143.27,0.2]
[1764221370589,11.88994492,143.28,143.27,1e-08]
[1764221371499,13.72586986,143.28,143.27,1e-08]
[1764221372591,20.70521101,143.28,143.27,1e-08]
[1764221373180,28.84832501,143.28,143.27,1e-08]
[1764221376999,18.20245515,143.28,143.27,0.68000001]
[1764221377191,11.89526609,143.28,143.27,0.68000001]
[1764221377406,8.81526609,143.28,143.27,0.68000001]
[1764221379405,6.97934115,143.28,143.27,0.68000001]
[1764221379707,8.81526609,143.28,143.27,0.68000001]
[1764221381910,6.97934115,143.28,143.27,0.68000001]
[1764221382080,8.81526609,143.28,143.27,0.68000001]
[1764221383201,8.81526609,143.28,143.27,1e-08]
[1764221384391,17.62521101,143.28,143.27,1e-08]
[1764221385011,25.08832501,143.28,143.27,1e-08]
[1764221389514,23.25240007,143.28,143.27,0.68000001]
[1764221389813,8.81526609,143.28,143.27,0.68000001]
[1764221396518,15.78928607,143.28,143.27,1e-08]
[1764221396702,17.62521101,143.28,143.27,1e-08]
[1764221396912,25.08832501,143.28,143.27,1e-08]
[1764221400523,25.08832501,143.28,143.26,0.2]
[1764221400524,8.80994492,143.27,143.26,1e-08]
[1764221400714,0.28432314,143.26,143.24,0.2]
[1764221400923,8.80994492,143.24,143.21,8.79606488]
[1764221401107,3.08,143.23,143.21,8.11606488]
[1764221401301,3.08,143.23,143.22,0.68]
[1764221402033,10.06177756,143.23,143.22,0.68]
[1764221402417,11.8977025,143.23,143.22,0.68]
[1764221406128,11.8977025,143.23,143.21,8.11606488]
[1764221406436,1.83592494,143.22,143.21,8.79606488]
[1764221406734,10.06177756,143.23,143.22,0.68]
[1764221406735,18.87172248,143.23,143.22,0.68]
[1764221406914,20.70764742,143.23,143.22,0.68]
[1764221409332,8.80994492,143.22,143.21,8.11606488]
[1764221409514,34.62275676,143.22,143.21,1e-08]
[1764221409908,37.42064435,143.22,143.21,1e-08]
[1764221410532,37.38064435,143.22,143.21,1e-08]
[1764221411013,44.36290939,143.22,143.21,1e-08]
[1764221412216,41.5650218,143.22,143.21,1e-08]
[1764221412419,44.6450218,143.22,143.21,1e-08]
[1764221413318,41.5650218,143.22,143.21,1e-08]
[1764221413636,44.6450218,143.22,143.21,1e-08]
[1764221413840,86.5550218,143.22,143.21,1e-08]
[1764221415635,25.11880892,143.2,143.19,0.2]
[1764221415817,8.80994492,143.19,143.18,55.68887634]
[1764221416133,10.64586986,143.19,143.18,55.68887634]
[1764221416715,17.95392091,143.19,143.17,8.96901576]
[1764221416917,13.72586986,143.18,143.17,8.96901576]
[1764221418042,20.71008553,143.18,143.17,8.96901576]
[1764221419615,25.11880892,143.17,143.13,10.34196664]
[1764221419820,8.80994492,143.15,143.14,0.72]
[1764221420044,6.98616738,143.14,143.13,10.34196664]
[1764221420326,10.06616738,143.14,143.13,10.34196664]
[1764221420823,11.90209232,143.14,143.13,10.34196664]
[1764221421223,20.71203724,143.14,143.13,10.34196664]
[1764221421628,20.75203724,143.14,143.13,9.62196664]
[1764221421832,8.80994492,143.13,143.12,0.2]
[1764221422057,17.91684848,143.13,143.12,0.2]
[1764221422260,17.91684848,143.13,143.09,10.07491752]
[1764221422261,0.28432314,143.12,143.09,10.07491752]
[1764221422434,10.64586986,143.1,143.09,10.79491752]
[1764221422748,10.64586986,143.1,143.09,10.07491752]
[1764221424120,15.79806511,143.1,143.09,10.07491752]
[1764221424325,17.63399005,143.1,143.09,10.07491752]
[1764221424528,18.95876959,143.1,143.09,10.07491752]
[1764221424724,18.95876959,143.1,143.08,58.37097685]
[1764221424725,21.59082779,143.1,143.08,58.37097685]
[1764221424925,17.6427076,143.09,143.08,58.37097685]
[1764221425344,17.92703074,143.09,143.08,58.37097685]
[1764221425844,17.78486917,143.09,143.08,58.37097685]
[1764221426042,14.76632626,143.09,143.08,59.09097685]
[1764221426449,21.75493482,143.09,143.08,58.37097685]